[Event "Titled Tuesday Blitz March 08 Early 2022"]
[White "Gabdrakhmanov, Azat"]
[Black "Romanchuk, Viktor"]
[WhiteFideId "34189197"]
[BlackFideId "14109271"]
[WhiteElo "2279"]
[BlackElo "2242"]
[Result "0-1"]
[Round "11"]
[TimeControl "180+1"]
[Date "2022.03.09"]
[WhiteClock "0:00:05"]
[BlackClock "0:01:14"]

1. e4 {[%clk 0:03:00]}  e6 {[%clk 0:02:59]} 2. Ne2 {[%clk 0:03:01]}  d5 {[%clk 0:02:59]} 3. e5 {[%clk 0:02:58]}  c5 {[%clk 0:02:58]} 4. d3 {[%clk 0:02:56]}  Nc6 {[%clk 0:02:57]} 5. f4 {[%clk 0:02:53]}  f6 {[%clk 0:02:56]} 6. exf6 {[%clk 0:02:50]}  Nxf6 {[%clk 0:02:57]} 7. Ng3 {[%clk 0:02:34]}  Bd6 {[%clk 0:02:56]} 8. Be2 {[%clk 0:02:34]}  O-O {[%clk 0:02:54]} 9. O-O {[%clk 0:02:34]}  Qc7 {[%clk 0:02:51]} 10. Nc3 {[%clk 0:02:30]}  a6 {[%clk 0:02:51]} 11. Bf3 {[%clk 0:02:06]}  Bd7 {[%clk 0:02:49]} 12. Nce2 {[%clk 0:02:06]}  Rae8 {[%clk 0:02:43]} 13. Bd2 {[%clk 0:02:06]}  e5 {[%clk 0:02:43]} 14. fxe5 {[%clk 0:02:04]}  Nxe5 {[%clk 0:02:42]} 15. Nc3 {[%clk 0:01:52]}  Nxf3+ {[%clk 0:02:30]} 16. Qxf3 {[%clk 0:01:50]}  Bxg3 {[%clk 0:02:06]} 17. hxg3 {[%clk 0:01:30]}  Bc6 {[%clk 0:02:04]} 18. Bf4 {[%clk 0:01:13]}  Qb6 {[%clk 0:01:59]} 19. Bd6 {[%clk 0:00:57]}  Rf7 {[%clk 0:01:57]} 20. Qf4 {[%clk 0:00:45]}  Qxb2 {[%clk 0:01:53]} 21. Be5 {[%clk 0:00:42]}  Qxc2 {[%clk 0:01:50]} 22. Rae1 {[%clk 0:00:19]}  Qxd3 {[%clk 0:01:45]} 23. Bxf6 {[%clk 0:00:16]}  Rxf6 {[%clk 0:01:33]} 24. Qc7 {[%clk 0:00:08]}  Rxe1 {[%clk 0:01:17]} 25. Rxe1 {[%clk 0:00:08]}  Qd4+ {[%clk 0:01:15]} 26. Kh2 {[%clk 0:00:05]}  Rh6# {[%clk 0:01:14]} 0-1


[Site "https://www.chess.com"]

[Event "Titled Tuesday Blitz March 08 Early 2022"]
[White "Golubka, Petro"]
[Black "Madaminov, Mukhiddin"]
[WhiteFideId "14114224"]
[BlackFideId "14210703"]
[WhiteElo "2346"]
[BlackElo "1916"]
[Result "0-1"]
[Round "11"]
[TimeControl "180+1"]
[Date "2022.03.08"]
[WhiteClock "0:01:21"]
[BlackClock "0:00:52"]

1. e4 {[%clk 0:03:00]}  e6 {[%clk 0:02:58]} 2. d3 {[%clk 0:02:59]}  d5 {[%clk 0:02:58]} 3. Nd2 {[%clk 0:03:00]}  Nf6 {[%clk 0:02:58]} 4. h4 {[%clk 0:03:00]}  dxe4 {[%clk 0:02:57]} 5. dxe4 {[%clk 0:02:59]}  e5 {[%clk 0:02:57]} 6. Ngf3 {[%clk 0:02:57]}  Bc5 {[%clk 0:02:57]} 7. Bd3 {[%clk 0:02:51]}  O-O {[%clk 0:02:53]} 8. Nb3 {[%clk 0:02:49]}  Bb6 {[%clk 0:02:47]} 9. Nxe5 {[%clk 0:02:40]}  Re8 {[%clk 0:02:46]} 10. Bf4 {[%clk 0:02:38]}  Nbd7 {[%clk 0:01:44]} 11. Nxd7 {[%clk 0:02:16]}  Nxe4 {[%clk 0:01:44]} 12. O-O {[%clk 0:02:11]}  Bxd7 {[%clk 0:01:44]} 13. Be3 {[%clk 0:01:57]}  Bxe3 {[%clk 0:01:25]} 14. fxe3 {[%clk 0:01:58]}  Ng3 {[%clk 0:01:26]} 15. Rf4 {[%clk 0:01:51]}  Rxe3 {[%clk 0:01:25]} 16. Qd2 {[%clk 0:01:50]}  Qe7 {[%clk 0:01:22]} 17. Nd4 {[%clk 0:01:46]}  Re8 {[%clk 0:01:18]} 18. Nf3 {[%clk 0:01:41]}  Bc6 {[%clk 0:00:55]} 19. Ng5 {[%clk 0:01:23]}  Ne2+ {[%clk 0:00:55]} 20. Bxe2 {[%clk 0:01:21]}  Rxe2 {[%clk 0:00:55]} 21. Qd4 {[%clk 0:01:21]}  Rxg2+ {[%clk 0:00:55]} 22. Kf1 {[%clk 0:01:21]}  Qe2# {[%clk 0:00:52]} 0-1


[Site "https://www.chess.com"]

[Event "Titled Tuesday Blitz March 08 Early 2022"]
[White "Gracia Alvarez, Gerardo Antonio"]
[Black "Sanchez, Robert"]
[WhiteFideId "5109124"]
[BlackFideId "2034360"]
[WhiteElo "2139"]
[BlackElo "2281"]
[Result "1/2-1/2"]
[Round "11"]
[TimeControl "180+1"]
[Date "2022.03.09"]
[WhiteClock "0:00:11"]
[BlackClock "0:00:06"]

1. e4 {[%clk 0:02:56]}  e6 {[%clk 0:03:00]} 2. d4 {[%clk 0:02:56]}  d5 {[%clk 0:03:00]} 3. e5 {[%clk 0:02:57]}  c5 {[%clk 0:03:00]} 4. c3 {[%clk 0:02:57]}  Nc6 {[%clk 0:03:00]} 5. Nf3 {[%clk 0:02:57]}  Bd7 {[%clk 0:03:01]} 6. Be2 {[%clk 0:02:50]}  Nge7 {[%clk 0:03:01]} 7. Na3 {[%clk 0:02:47]}  cxd4 {[%clk 0:02:58]} 8. cxd4 {[%clk 0:02:46]}  Nf5 {[%clk 0:02:57]} 9. Nc2 {[%clk 0:02:45]}  Rc8 {[%clk 0:02:50]} 10. O-O {[%clk 0:02:27]}  Be7 {[%clk 0:02:47]} 11. g4 {[%clk 0:02:23]}  Nh4 {[%clk 0:02:46]} 12. Nxh4 {[%clk 0:02:22]}  Bxh4 {[%clk 0:02:46]} 13. Be3 {[%clk 0:02:21]}  f6 {[%clk 0:02:42]} 14. f4 {[%clk 0:02:20]}  O-O {[%clk 0:02:39]} 15. Qd2 {[%clk 0:02:10]}  fxe5 {[%clk 0:02:39]} 16. fxe5 {[%clk 0:02:10]}  Qe7 {[%clk 0:02:31]} 17. Bd3 {[%clk 0:02:05]}  Rxf1+ {[%clk 0:02:23]} 18. Rxf1 {[%clk 0:02:04]}  Rf8 {[%clk 0:02:23]} 19. b4 {[%clk 0:01:47]}  Rxf1+ {[%clk 0:02:19]} 20. Kxf1 {[%clk 0:01:48]}  a6 {[%clk 0:02:14]} 21. a4 {[%clk 0:01:47]}  Nd8 {[%clk 0:02:11]} 22. b5 {[%clk 0:01:46]}  axb5 {[%clk 0:02:10]} 23. axb5 {[%clk 0:01:47]}  Nf7 {[%clk 0:02:10]} 24. b6 {[%clk 0:01:38]}  Ng5 {[%clk 0:02:02]} 25. Kg2 {[%clk 0:01:37]}  Ne4 {[%clk 0:01:54]} 26. Qb4 {[%clk 0:01:36]}  Qf7 {[%clk 0:01:47]} 27. Qa5 {[%clk 0:01:19]}  Qf8 {[%clk 0:01:29]} 28. Qa3 {[%clk 0:01:07]}  Be7 {[%clk 0:01:27]} 29. Qa7 {[%clk 0:01:06]}  Bc6 {[%clk 0:01:27]} 30. Ne1 {[%clk 0:00:38]}  h6 {[%clk 0:01:14]} 31. Nf3 {[%clk 0:00:38]}  Qf7 {[%clk 0:01:02]} 32. Qb8+ {[%clk 0:00:36]}  Kh7 {[%clk 0:01:02]} 33. Qc7 {[%clk 0:00:35]}  Qf8 {[%clk 0:00:56]} 34. Ba6 {[%clk 0:00:31]}  Bd8 {[%clk 0:00:51]} 35. Qc8 {[%clk 0:00:31]}  Qe7 {[%clk 0:00:42]} 36. h4 {[%clk 0:00:16]}  Bxb6 {[%clk 0:00:38]} 37. g5 {[%clk 0:00:17]}  Qf7 {[%clk 0:00:26]} 38. Bd3 {[%clk 0:00:14]}  Qf5 {[%clk 0:00:20]} 39. Nh2 {[%clk 0:00:11]}  hxg5 {[%clk 0:00:17]} 40. hxg5 {[%clk 0:00:11]}  Qg6 {[%clk 0:00:06]} 41. Nf3 {[%clk 0:00:11]}  Qh5 {[%clk 0:00:05]} 42. Nh2 {[%clk 0:00:11]}  Qg6 {[%clk 0:00:05]} 43. Nf3 {[%clk 0:00:11]}  Qh5 {[%clk 0:00:06]} 44. Nh2 {[%clk 0:00:11]}  Qg6 {[%clk 0:00:06]} 1/2-1/2


[Site "https://www.chess.com"]

[Event "Titled Tuesday Blitz March 08 Early 2022"]
[White "Hartikainen, Jarmo"]
[Black "Butti, Enrique"]
[WhiteFideId "503134"]
[BlackFideId "3700470"]
[WhiteElo "2109"]
[BlackElo "2080"]
[Result "1-0"]
[Round "11"]
[TimeControl "180+1"]
[Date "2022.03.09"]
[WhiteClock "0:00:45"]
[BlackClock "0:01:19"]

1. e4 {[%clk 0:02:59]}  c5 {[%clk 0:02:59]} 2. Nf3 {[%clk 0:02:58]}  d6 {[%clk 0:02:59]} 3. d4 {[%clk 0:02:59]}  cxd4 {[%clk 0:02:58]} 4. Nxd4 {[%clk 0:02:59]}  Nf6 {[%clk 0:02:58]} 5. Nc3 {[%clk 0:02:59]}  g6 {[%clk 0:02:58]} 6. Be3 {[%clk 0:02:59]}  Bg7 {[%clk 0:02:58]} 7. f3 {[%clk 0:03:00]}  O-O {[%clk 0:02:57]} 8. Qd2 {[%clk 0:02:59]}  Nc6 {[%clk 0:02:57]} 9. g4 {[%clk 0:02:59]}  Nxd4 {[%clk 0:02:42]} 10. Bxd4 {[%clk 0:02:57]}  Be6 {[%clk 0:02:41]} 11. O-O-O {[%clk 0:02:53]}  Qa5 {[%clk 0:02:32]} 12. a3 {[%clk 0:02:51]}  Rfc8 {[%clk 0:02:26]} 13. h4 {[%clk 0:02:46]}  Rc7 {[%clk 0:02:07]} 14. h5 {[%clk 0:02:41]}  Rac8 {[%clk 0:02:06]} 15. hxg6 {[%clk 0:02:41]}  fxg6 {[%clk 0:01:54]} 16. Bd3 {[%clk 0:02:23]}  Nxe4 {[%clk 0:01:40]} 17. Bxe4 {[%clk 0:02:18]}  Rxc3 {[%clk 0:01:33]} 18. Bxg7 {[%clk 0:01:47]}  Kxg7 {[%clk 0:01:22]} 19. Qd4+ {[%clk 0:01:44]}  Kg8 {[%clk 0:01:21]} 20. bxc3 {[%clk 0:01:17]}  Rxc3 {[%clk 0:01:19]} 21. Rxh7 {[%clk 0:00:45]} 1-0


[Site "https://www.chess.com"]

[Event "Titled Tuesday Blitz March 08 Early 2022"]
[White "Havas, Ladislav"]
[Black "Ezat, Mohamed"]
[WhiteFideId "14501090"]
[BlackFideId "10600906"]
[WhiteElo "2206"]
[BlackElo "2386"]
[Result "1/2-1/2"]
[Round "11"]
[TimeControl "180+1"]
[Date "2022.03.09"]
[WhiteClock "0:01:02"]
[BlackClock "0:00:15"]

1. d4 {[%clk 0:03:00]}  Nf6 {[%clk 0:01:41]} 2. Bg5 {[%clk 0:02:57]}  c5 {[%clk 0:01:40]} 3. d5 {[%clk 0:02:56]}  Qb6 {[%clk 0:01:35]} 4. Nc3 {[%clk 0:02:56]}  Qxb2 {[%clk 0:01:33]} 5. Bd2 {[%clk 0:02:57]}  Qb6 {[%clk 0:01:33]} 6. e4 {[%clk 0:02:57]}  d6 {[%clk 0:01:33]} 7. f4 {[%clk 0:02:57]}  a6 {[%clk 0:01:32]} 8. Nf3 {[%clk 0:02:57]}  Bg4 {[%clk 0:01:30]} 9. Rb1 {[%clk 0:02:55]}  Qc7 {[%clk 0:01:30]} 10. Be2 {[%clk 0:02:54]}  Nbd7 {[%clk 0:01:30]} 11. a4 {[%clk 0:02:54]}  g6 {[%clk 0:01:29]} 12. h3 {[%clk 0:02:54]}  Bxf3 {[%clk 0:01:27]} 13. Bxf3 {[%clk 0:02:55]}  Bg7 {[%clk 0:01:27]} 14. O-O {[%clk 0:02:46]}  O-O {[%clk 0:01:27]} 15. Qe2 {[%clk 0:02:44]}  Rab8 {[%clk 0:01:26]} 16. g4 {[%clk 0:02:43]}  c4 {[%clk 0:01:24]} 17. Kg2 {[%clk 0:02:36]}  Rfc8 {[%clk 0:01:21]} 18. g5 {[%clk 0:02:32]}  Ne8 {[%clk 0:01:17]} 19. Bg4 {[%clk 0:02:22]}  Rd8 {[%clk 0:01:15]} 20. Rfe1 {[%clk 0:02:12]}  Nc5 {[%clk 0:01:10]} 21. e5 {[%clk 0:02:09]}  dxe5 {[%clk 0:01:10]} 22. fxe5 {[%clk 0:02:09]}  b5 {[%clk 0:01:09]} 23. axb5 {[%clk 0:02:08]}  axb5 {[%clk 0:01:00]} 24. Nxb5 {[%clk 0:02:07]}  Rxb5 {[%clk 0:01:00]} 25. Rxb5 {[%clk 0:02:07]}  Rxd5 {[%clk 0:01:01]} 26. Qxc4 {[%clk 0:02:04]}  Rxd2+ {[%clk 0:00:59]} 27. Re2 {[%clk 0:02:02]}  Rxe2+ {[%clk 0:00:47]} 28. Bxe2 {[%clk 0:02:02]}  Ne6 {[%clk 0:00:37]} 29. Qxc7 {[%clk 0:01:55]}  N6xc7 {[%clk 0:00:36]} 30. Rc5 {[%clk 0:01:50]}  h6 {[%clk 0:00:30]} 31. gxh6 {[%clk 0:01:46]}  Bxh6 {[%clk 0:00:29]} 32. Kf3 {[%clk 0:01:47]}  Kg7 {[%clk 0:00:29]} 33. Ke4 {[%clk 0:01:46]}  Bd2 {[%clk 0:00:26]} 34. h4 {[%clk 0:01:45]}  Ne6 {[%clk 0:00:26]} 35. Rc8 {[%clk 0:01:43]}  N8c7 {[%clk 0:00:25]} 36. Bc4 {[%clk 0:01:42]}  Be1 {[%clk 0:00:24]} 37. Bxe6 {[%clk 0:01:31]}  Nxe6 {[%clk 0:00:24]} 38. c4 {[%clk 0:01:31]}  Bf2 {[%clk 0:00:22]} 39. Kd5 {[%clk 0:01:28]}  Bxh4 {[%clk 0:00:20]} 40. c5 {[%clk 0:01:28]}  Be1 {[%clk 0:00:20]} 41. c6 {[%clk 0:01:28]}  Ba5 {[%clk 0:00:20]} 42. Rb8 {[%clk 0:01:24]}  Bc7 {[%clk 0:00:20]} 43. Rb7 {[%clk 0:01:24]}  g5 {[%clk 0:00:21]} 44. Ra7 {[%clk 0:01:23]}  Kg6 {[%clk 0:00:21]} 45. Ke4 {[%clk 0:01:23]}  g4 {[%clk 0:00:21]} 46. Ra2 {[%clk 0:01:22]}  Kg5 {[%clk 0:00:21]} 47. Rf2 {[%clk 0:01:20]}  Nc5+ {[%clk 0:00:18]} 48. Kd5 {[%clk 0:01:20]}  Nd3 {[%clk 0:00:18]} 49. Rxf7 {[%clk 0:01:18]}  Nf4+ {[%clk 0:00:18]} 50. Ke4 {[%clk 0:01:17]}  Ne6 {[%clk 0:00:18]} 51. Rf5+ {[%clk 0:01:16]}  Kg6 {[%clk 0:00:18]} 52. Rf1 {[%clk 0:01:15]}  Kg5 {[%clk 0:00:14]} 53. Rf5+ {[%clk 0:01:11]}  Kh4 {[%clk 0:00:15]} 54. Rf1 {[%clk 0:01:08]}  g3 {[%clk 0:00:15]} 55. Kf5 {[%clk 0:01:07]}  Kh3 {[%clk 0:00:15]} 56. Kxe6 {[%clk 0:01:07]}  g2 {[%clk 0:00:15]} 57. Rg1 {[%clk 0:01:06]}  Kg3 {[%clk 0:00:13]} 58. Kxe7 {[%clk 0:01:03]}  Bxe5 {[%clk 0:00:13]} 59. Kd7 {[%clk 0:01:02]}  Kf2 {[%clk 0:00:13]} 60. Rxg2+ {[%clk 0:01:02]}  Kxg2 {[%clk 0:00:14]} 61. c7 {[%clk 0:01:02]}  Bxc7 {[%clk 0:00:15]} 1/2-1/2


[Site "https://www.chess.com"]

[Event "Titled Tuesday Blitz March 08 Early 2022"]
[White "Horak, Martin"]
[Black "Pinheiro, Iung Alicio de O."]
[WhiteFideId "367095"]
[BlackFideId "2104350"]
[WhiteElo "1997"]
[BlackElo "2552"]
[Result "0-1"]
[Round "11"]
[TimeControl "180+1"]
[Date "2022.03.09"]
[WhiteClock "0:00:01"]
[BlackClock "0:00:11"]

1. d4 {[%clk 0:02:55]}  Nf6 {[%clk 0:02:59]} 2. Bg5 {[%clk 0:02:55]}  Ne4 {[%clk 0:02:57]} 3. h4 {[%clk 0:02:54]}  h6 {[%clk 0:02:54]} 4. Bf4 {[%clk 0:02:53]}  c5 {[%clk 0:02:46]} 5. d5 {[%clk 0:02:53]}  Qb6 {[%clk 0:02:38]} 6. Nd2 {[%clk 0:02:53]}  Nxd2 {[%clk 0:02:31]} 7. Bxd2 {[%clk 0:02:53]}  e5 {[%clk 0:02:28]} 8. Bc3 {[%clk 0:02:37]}  d6 {[%clk 0:02:28]} 9. Nf3 {[%clk 0:02:29]}  Be7 {[%clk 0:02:23]} 10. Nd2 {[%clk 0:02:14]}  Qd8 {[%clk 0:02:12]} 11. e4 {[%clk 0:02:12]}  O-O {[%clk 0:02:11]} 12. g3 {[%clk 0:01:58]}  f5 {[%clk 0:02:07]} 13. exf5 {[%clk 0:01:56]}  Bxf5 {[%clk 0:02:07]} 14. Bh3 {[%clk 0:01:46]}  Bxh3 {[%clk 0:01:58]} 15. Rxh3 {[%clk 0:01:47]}  Qd7 {[%clk 0:01:59]} 16. Rh2 {[%clk 0:01:46]}  Qf5 {[%clk 0:01:59]} 17. a4 {[%clk 0:01:26]}  Nd7 {[%clk 0:01:35]} 18. Nc4 {[%clk 0:01:24]}  Qe4+ {[%clk 0:01:27]} 19. Ne3 {[%clk 0:01:16]}  c4 {[%clk 0:01:16]} 20. Qg4 {[%clk 0:01:11]}  Nf6 {[%clk 0:01:09]} 21. Qxe4 {[%clk 0:00:46]}  Nxe4 {[%clk 0:01:09]} 22. Ke2 {[%clk 0:00:42]}  Rac8 {[%clk 0:01:04]} 23. a5 {[%clk 0:00:39]}  Rc5 {[%clk 0:00:56]} 24. Bb4 {[%clk 0:00:38]}  Rb5 {[%clk 0:00:55]} 25. c3 {[%clk 0:00:36]}  Nf6 {[%clk 0:00:46]} 26. Rd1 {[%clk 0:00:34]}  Rd8 {[%clk 0:00:44]} 27. g4 {[%clk 0:00:29]}  b6 {[%clk 0:00:30]} 28. a6 {[%clk 0:00:28]}  Ne4 {[%clk 0:00:29]} 29. Nf5 {[%clk 0:00:24]}  Bf8 {[%clk 0:00:28]} 30. f3 {[%clk 0:00:17]}  Nf6 {[%clk 0:00:28]} 31. g5 {[%clk 0:00:16]}  Nxd5 {[%clk 0:00:22]} 32. gxh6 {[%clk 0:00:12]}  g6 {[%clk 0:00:22]} 33. Ng3 {[%clk 0:00:07]}  Nxb4 {[%clk 0:00:22]} 34. cxb4 {[%clk 0:00:06]}  Rxb4 {[%clk 0:00:23]} 35. Rd2 {[%clk 0:00:05]}  d5 {[%clk 0:00:22]} 36. Ne4 {[%clk 0:00:05]}  Be7 {[%clk 0:00:22]} 37. Ng5 {[%clk 0:00:04]}  Bxg5 {[%clk 0:00:20]} 38. hxg5 {[%clk 0:00:04]}  d4 {[%clk 0:00:20]} 39. Rh4 {[%clk 0:00:02]}  Kh7 {[%clk 0:00:19]} 40. Re4 {[%clk 0:00:02]}  Rd5 {[%clk 0:00:19]} 41. f4 {[%clk 0:00:02]}  Rbb5 {[%clk 0:00:19]} 42. fxe5 {[%clk 0:00:02]}  Rxe5 {[%clk 0:00:20]} 43. Rxe5 {[%clk 0:00:03]}  Rxe5+ {[%clk 0:00:20]} 44. Kf3 {[%clk 0:00:04]}  d3 {[%clk 0:00:21]} 45. Kf4 {[%clk 0:00:04]}  Rf5+ {[%clk 0:00:21]} 46. Kg4 {[%clk 0:00:04]}  Re5 {[%clk 0:00:21]} 47. b3 {[%clk 0:00:04]}  Re2 {[%clk 0:00:19]} 48. Rd1 {[%clk 0:00:03]}  Rg2+ {[%clk 0:00:17]} 49. Kf4 {[%clk 0:00:03]}  Rf2+ {[%clk 0:00:16]} 50. Kg4 {[%clk 0:00:03]}  Rc2 {[%clk 0:00:11]} 51. bxc4 {[%clk 0:00:03]}  d2 {[%clk 0:00:12]} 52. Kf3 {[%clk 0:00:03]}  Rxc4 {[%clk 0:00:12]} 53. Rxd2 {[%clk 0:00:03]}  Rc3+ {[%clk 0:00:12]} 54. Kf4 {[%clk 0:00:03]}  Rc7 {[%clk 0:00:13]} 55. Rd6 {[%clk 0:00:03]}  Rf7+ {[%clk 0:00:13]} 56. Ke5 {[%clk 0:00:02]}  Rc7 {[%clk 0:00:13]} 57. Kf6 {[%clk 0:00:02]}  b5 {[%clk 0:00:11]} 58. Rd5 {[%clk 0:00:02]}  Rc6+ {[%clk 0:00:11]} 59. Ke5 {[%clk 0:00:02]}  Rb6 {[%clk 0:00:09]} 60. Rd3 {[%clk 0:00:01]}  b4 {[%clk 0:00:09]} 61. Rb3 {[%clk 0:00:01]}  Kg8 {[%clk 0:00:10]} 62. Kd5 {[%clk 0:00:01]}  Rb5+ {[%clk 0:00:11]} 63. Kc4 {[%clk 0:00:01]}  Rxg5 {[%clk 0:00:12]} 64. Kxb4 {[%clk 0:00:01]}  Kh7 {[%clk 0:00:11]} 0-1


[Site "https://www.chess.com"]

[Event "Titled Tuesday Blitz March 08 Early 2022"]
[White "Hryshchenko, Kamila"]
[Black "Polster, Christian"]
[WhiteFideId "14147491"]
[BlackFideId "12965081"]
[WhiteElo "1929"]
[BlackElo "2284"]
[Result "1-0"]
[Round "11"]
[TimeControl "180+1"]
[Date "2022.03.09"]
[WhiteClock "0:00:36"]
[BlackClock "0:00:09"]

1. e4 {[%clk 0:02:58]}  c5 {[%clk 0:02:59]} 2. Nf3 {[%clk 0:02:58]}  d6 {[%clk 0:02:59]} 3. d4 {[%clk 0:02:54]}  cxd4 {[%clk 0:03:00]} 4. Qxd4 {[%clk 0:02:54]}  Nc6 {[%clk 0:02:57]} 5. Bb5 {[%clk 0:02:55]}  Bd7 {[%clk 0:02:46]} 6. Qd3 {[%clk 0:02:54]}  Nf6 {[%clk 0:02:43]} 7. O-O {[%clk 0:02:54]}  g6 {[%clk 0:02:40]} 8. c4 {[%clk 0:02:47]}  Bg7 {[%clk 0:02:39]} 9. Nc3 {[%clk 0:02:42]}  O-O {[%clk 0:02:38]} 10. h3 {[%clk 0:02:40]}  a6 {[%clk 0:02:34]} 11. Bxc6 {[%clk 0:02:39]}  Bxc6 {[%clk 0:02:35]} 12. Be3 {[%clk 0:02:39]}  Qa5 {[%clk 0:02:32]} 13. Nd4 {[%clk 0:02:37]}  Rfc8 {[%clk 0:02:31]} 14. Rac1 {[%clk 0:02:36]}  Nd7 {[%clk 0:02:23]} 15. b3 {[%clk 0:02:29]}  b5 {[%clk 0:02:07]} 16. cxb5 {[%clk 0:02:14]}  Bxb5 {[%clk 0:02:01]} 17. Ncxb5 {[%clk 0:02:00]}  axb5 {[%clk 0:02:01]} 18. Nc6 {[%clk 0:01:58]}  Rxc6 {[%clk 0:01:54]} 19. Rxc6 {[%clk 0:01:59]}  Ne5 {[%clk 0:01:55]} 20. Qc2 {[%clk 0:01:49]}  Nxc6 {[%clk 0:01:52]} 21. Qxc6 {[%clk 0:01:50]}  Qa6 {[%clk 0:01:37]} 22. Qd7 {[%clk 0:01:47]}  Bf6 {[%clk 0:01:31]} 23. Rc1 {[%clk 0:01:46]}  Qxa2 {[%clk 0:01:28]} 24. Qxb5 {[%clk 0:01:45]}  Kg7 {[%clk 0:01:25]} 25. g3 {[%clk 0:01:33]}  Ra3 {[%clk 0:01:16]} 26. Rc8 {[%clk 0:01:19]}  Rxb3 {[%clk 0:00:46]} 27. Qe8 {[%clk 0:01:17]}  g5 {[%clk 0:00:40]} 28. Qg8+ {[%clk 0:01:15]}  Kh6 {[%clk 0:00:40]} 29. h4 {[%clk 0:01:12]}  Qb1+ {[%clk 0:00:26]} 30. Rc1 {[%clk 0:01:03]}  Qxe4 {[%clk 0:00:11]} 31. hxg5+ {[%clk 0:01:01]}  Kh5 {[%clk 0:00:11]} 32. Qxf7+ {[%clk 0:00:54]}  Kg4 {[%clk 0:00:11]} 33. Qxb3 {[%clk 0:00:52]}  Kh3 {[%clk 0:00:09]} 34. Kf1 {[%clk 0:00:36]} 1-0


[Site "https://www.chess.com"]

[Event "Titled Tuesday Blitz March 08 Early 2022"]
[White "Ianov, Viktor"]
[Black "Janturin, Artur"]
[WhiteFideId "14102730"]
[BlackFideId "4130022"]
[WhiteElo "2161"]
[BlackElo "2351"]
[Result "1-0"]
[Round "11"]
[TimeControl "180+1"]
[Date "2022.03.09"]
[WhiteClock "0:01:56"]
[BlackClock "0:00:22"]

1. Nf3 {[%clk 0:02:53]}  e6 {[%clk 0:02:22]} 2. g3 {[%clk 0:02:51]}  b6 {[%clk 0:02:22]} 3. Bg2 {[%clk 0:02:51]}  Bb7 {[%clk 0:02:23]} 4. c4 {[%clk 0:02:51]}  Nf6 {[%clk 0:02:23]} 5. O-O {[%clk 0:02:51]}  Be7 {[%clk 0:02:23]} 6. Nc3 {[%clk 0:02:50]}  Ne4 {[%clk 0:02:23]} 7. Qc2 {[%clk 0:02:49]}  Nxc3 {[%clk 0:02:23]} 8. Qxc3 {[%clk 0:02:49]}  O-O {[%clk 0:02:22]} 9. d4 {[%clk 0:02:47]}  Be4 {[%clk 0:02:21]} 10. b3 {[%clk 0:02:46]}  d6 {[%clk 0:02:20]} 11. Bb2 {[%clk 0:02:46]}  Nd7 {[%clk 0:02:19]} 12. Rfd1 {[%clk 0:02:45]}  Bf6 {[%clk 0:02:16]} 13. Qd2 {[%clk 0:02:44]}  Qe7 {[%clk 0:02:06]} 14. Bh3 {[%clk 0:02:44]}  Rae8 {[%clk 0:01:54]} 15. Ne1 {[%clk 0:02:43]}  a5 {[%clk 0:01:39]} 16. f3 {[%clk 0:02:43]}  Bg6 {[%clk 0:01:36]} 17. e4 {[%clk 0:02:43]}  e5 {[%clk 0:01:33]} 18. d5 {[%clk 0:02:41]}  Bg5 {[%clk 0:01:29]} 19. Qc2 {[%clk 0:02:36]}  Be3+ {[%clk 0:01:16]} 20. Kh1 {[%clk 0:02:35]}  Nc5 {[%clk 0:01:08]} 21. Ng2 {[%clk 0:02:33]}  Bh6 {[%clk 0:00:57]} 22. a3 {[%clk 0:02:27]}  a4 {[%clk 0:00:36]} 23. b4 {[%clk 0:02:25]}  Nb3 {[%clk 0:00:36]} 24. Rab1 {[%clk 0:02:24]}  Nd4 {[%clk 0:00:33]} 25. Bxd4 {[%clk 0:02:17]}  exd4 {[%clk 0:00:34]} 26. Rxd4 {[%clk 0:02:16]}  Qe5 {[%clk 0:00:32]} 27. Rbd1 {[%clk 0:02:10]}  f5 {[%clk 0:00:31]} 28. f4 {[%clk 0:02:02]}  Qf6 {[%clk 0:00:28]} 29. exf5 {[%clk 0:02:00]}  Bh5 {[%clk 0:00:22]} 30. g4 {[%clk 0:01:56]} 1-0


[Site "https://www.chess.com"]

[Event "Titled Tuesday Blitz March 08 Early 2022"]
[White "Iskusnyh, Sergei"]
[Black "parintele_chess"]
[WhiteFideId "4120027"]
[WhiteElo "2492"]
[BlackElo "2238"]
[Result "1-0"]
[Round "11"]
[TimeControl "180+1"]
[Date "2022.03.09"]
[WhiteClock "0:01:29"]
[BlackClock "0:00:25"]

1. d4 {[%clk 0:02:30]}  d5 {[%clk 0:02:58]} 2. c4 {[%clk 0:02:29]}  e6 {[%clk 0:02:59]} 3. Nf3 {[%clk 0:02:28]}  Nf6 {[%clk 0:02:59]} 4. g3 {[%clk 0:02:29]}  Be7 {[%clk 0:02:58]} 5. Bg2 {[%clk 0:02:30]}  O-O {[%clk 0:02:58]} 6. Qc2 {[%clk 0:02:30]}  dxc4 {[%clk 0:02:55]} 7. Qxc4 {[%clk 0:02:30]}  a6 {[%clk 0:02:53]} 8. Qc2 {[%clk 0:02:28]}  b5 {[%clk 0:02:45]} 9. Bf4 {[%clk 0:02:27]}  Nd5 {[%clk 0:02:19]} 10. Nc3 {[%clk 0:02:27]}  Nxf4 {[%clk 0:02:15]} 11. gxf4 {[%clk 0:02:28]}  Ra7 {[%clk 0:02:04]} 12. O-O-O {[%clk 0:02:22]}  Bd6 {[%clk 0:01:49]} 13. e3 {[%clk 0:02:18]}  b4 {[%clk 0:01:47]} 14. Ne4 {[%clk 0:02:16]}  f5 {[%clk 0:01:39]} 15. Nc5 {[%clk 0:02:14]}  Qe7 {[%clk 0:01:22]} 16. Ne5 {[%clk 0:02:09]}  Nd7 {[%clk 0:01:16]} 17. Nc6 {[%clk 0:02:08]}  Qf6 {[%clk 0:01:11]} 18. Nxd7 {[%clk 0:02:00]}  Bxd7 {[%clk 0:01:12]} 19. Nxa7 {[%clk 0:01:59]}  Qd8 {[%clk 0:00:56]} 20. Nc6 {[%clk 0:01:56]}  Qe8 {[%clk 0:00:56]} 21. Ne5 {[%clk 0:01:55]}  Bxe5 {[%clk 0:00:56]} 22. dxe5 {[%clk 0:01:53]}  Ba4 {[%clk 0:00:56]} 23. b3 {[%clk 0:01:52]}  Bb5 {[%clk 0:00:56]} 24. Rd4 {[%clk 0:01:40]}  Qb8 {[%clk 0:00:43]} 25. Bc6 {[%clk 0:01:37]}  a5 {[%clk 0:00:36]} 26. Rhd1 {[%clk 0:01:34]}  Qb6 {[%clk 0:00:32]} 27. Bxb5 {[%clk 0:01:33]}  Qxb5 {[%clk 0:00:33]} 28. Qc4 {[%clk 0:01:33]}  Qb6 {[%clk 0:00:31]} 29. Rd8 {[%clk 0:01:32]}  Rxd8 {[%clk 0:00:30]} 30. Rxd8+ {[%clk 0:01:31]}  Kf7 {[%clk 0:00:31]} 31. Rd7+ {[%clk 0:01:31]}  Kg6 {[%clk 0:00:26]} 32. Qxc7 {[%clk 0:01:30]}  Qa6 {[%clk 0:00:26]} 33. Rxg7+ {[%clk 0:01:29]}  Kh5 {[%clk 0:00:26]} 34. Rg5+ {[%clk 0:01:29]}  Kh6 {[%clk 0:00:25]} 35. Qg7# {[%clk 0:01:29]} 1-0


[Site "https://www.chess.com"]